Cogmind - Beta 17 @@@ ROGUE MODE // 2026.08.24 @ 04:30:02 Player: TheSkyeDoctor Result: Destroyed by S-27 Virus with Autogun Performance ------------- Evolutions (4) 2000 Regions Visited (6) 1200 Robots Destroyed (91) 455 Value Destroyed (2163) 2163 Prototype IDs (5) 100 Alien Tech Used (0) 0 Bonus (0) 0 TOTAL SCORE: 5918 Bonus ------- None Cogmind --------- Core Integrity 0/850 Matter 206/300 Energy 100/100 System Corruption 1% Temperature Cool (0) Movement Core (50) Location -6/Factory Parts ------- > --- POWER (1) -------- (None) > --- PROPULSION (4) --- Light Treads Light Treads > --- UTILITY (6) ------ Advanced Signal Interpreter Advanced Terrain Scan Processor > --- WEAPON (4) ------- Scythe > --- INVENTORY (5) ---- Large Matter Pod (0) Kinecellerator Missile Launcher Peak State ------------ > --- POWER ------------ Nuclear Core > --- PROPULSION ------- Light Treads Light Treads Armored Wheel Armored Wheel > --- UTILITY ---------- Huge Storage Unit Seismic Detector Improved Medium Armor Plating Hardlight Generator > --- WEAPON ----------- Field Laser Gauss Rifle Gauss Rifle Great Maul > --- INVENTORY -------- Nuclear Core Nuclear Core Light Treads Light Treads Armored Wheel Armored Wheel Armored Wheel Armored Wheel Armored Wheel Armored Wheel Large Matter Pod Improved Terrain Scanner Improved Light Armor Plating Grenade Launcher Grenade Launcher Rocket Launcher Datajack [Rating: 35] Favorites ----------- Power Heavy Ion Engine Engine Heavy Ion Engine Power Core Nuclear Core Propulsion Light Treads Treads Light Treads Wheel Armored Wheel Utility Huge Storage Unit Device Seismic Detector Storage Huge Storage Unit Processor Advanced Terrain Scan Processor Protection Light Armor Plating Weapon Heavy Assault Rifle Energy Gun Field Laser Energy Cannon Plasma Cannon Ballistic Gun Heavy Assault Rifle Ballistic Cannon Heavy Flak Cannon Launcher Grenade Launcher Impact Weapon Great Maul Slashing Weapon Scythe Special Melee Weapon Datajack Build | -11 -10 -10 -9 -8 -7 -6 ------- Run | Yrd Mat Min Mat Mat Fac Fac Slots Evolved 8 | . . . 2 2 2 2 Power . | . . . . . . . Propulsion 2 | . . . . . 2 . Utility 4 | . . . . 2 . 2 Weapon 2 | . . . 2 . . . Parts Attached 55 | 7 1 . 5 9 20 13 Power 7 | 1 . . 1 . 3 2 Engine 3 | 1 . . 1 . . 1 Core 4 | . . . . . 3 1 Reactor . | . . . . . . . Propulsion 16 | 2 . . 1 3 6 4 Treads 6 | 1 . . 1 2 . 2 Leg . | . . . . . . . Wheel 10 | 1 . . . 1 6 2 Hover . | . . . . . . . Flight . | . . . . . . . Utility 14 | 2 1 . . 3 5 3 Device 5 | 1 . . . 2 1 1 Storage 2 | 1 1 . . . . . Processor 3 | . . . . . 2 1 Hackware . | . . . . . . . Protection 4 | . . . . 1 2 1 Artifact . | . . . . . . . Weapon 18 | 2 . . 3 3 6 4 Energy Gun 2 | 1 . . 1 . . . Energy Cannon 1 | . . . . . . 1 Ballistic Gun 7 | 1 . . 2 2 2 . Ballistic Cannon 1 | . . . . . . 1 Launcher 4 | . . . . . 3 1 Special Weapon . | . . . . . . . Impact Weapon 1 | . . . . 1 . . Slashing Weapon 1 | . . . . . . 1 Piercing Weapon . | . . . . . . . Special Melee Weapon 1 | . . . . . 1 . Unidentified Prototypes 3 | . . . 2 . . 1 Parts Lost 38 | . . . 1 4 22 11 Power 4 | . . . . . 3 1 Propulsion 10 | . . . . . 6 4 Utility 8 | . . . . 1 5 2 Weapon 16 | . . . 1 3 8 4 Highest Loss Streak 8 | . . . 1 2 8 8 To Critical Strikes . | . . . . . . . Average Backups 10 | 2 6 7 9 15 14 4 Power . | . 1 1 1 . 1 . Propulsion 5 | 1 3 3 3 8 7 1 Utility 2 | . 1 2 2 3 2 2 Weapon 1 | . . 1 2 2 2 . Tool/Special . | . . . . . . . Unused Backups 6 | . . . . 4 1 1 Power 2 | . . . . 1 1 . Propulsion 3 | . . . . 3 . . Utility 1 | . . . . . . 1 Weapon . | . . . . . . . Tool/Special . | . . . . . . . Average Slot Usage (%) 77 | . 100 100 89 89 86 27 Engine 6 | . 14 14 10 9 1 . Core 1 | . . . . . 4 1 Treads 8 | . 14 14 11 9 10 1 Wheel 11 | . 14 14 11 8 15 5 Device 10 | . 14 14 11 11 12 2 Storage 8 | . 14 14 11 9 7 1 Processor 1 | . . . . . 2 6 Protection 3 | . . . . 9 5 . Energy Gun 7 | . 14 14 10 9 4 . Ballistic Gun 13 | . 14 14 24 21 8 . Launcher 1 | . . . . . 3 1 Impact Weapon 2 | . . . . 2 5 . Peak Build Rating 35 | 7 8 8 16 27 35 32 Average Rating 17 | 6 7 7 12 21 27 13 On Entrance 12 | . 7 7 8 16 27 21 Avg Prop Armor Cover (%) 9 | 14 12 12 7 7 10 39 Naked Turns . | . . . . . . . Heaviest Build 115 | 13 88 88 100 111 115 103 Greatest Support 48 | 10 10 10 20 20 48 48 Greatest Overweight (x) 10 | 1 8 8 9 10 9 6 Average Overweight (x) 4 | . 4 8 6 8 3 1 Largest Inventory Capacity 25 | 8 25 25 25 25 25 25 Average Capacity 21 | 7 17 25 25 25 25 9 Most Carried 18 | 5 8 8 11 18 18 5 Average Carried 10 | 2 6 7 9 15 14 4 Final Capacity 25 | 8 25 25 25 25 25 5 Final Carried 18 | 5 7 8 10 18 6 3 Class Distribution -------------------- 47% | Mutant 24% | Scavenger-Tank 17% | Gunner 10% | Tank Dominant Class ---------------- Mutant | -10/Materials Mutant | -10/Mines Gunner | -9/Materials Scavenger-Tank | -8/Materials Tank | -7/Factory Mutant | -6/Factory Resources | -11 -10 -10 -9 -8 -7 -6 ----------- Run | Yrd Mat Min Mat Mat Fac Fac Matter Collected 2136 | 312 121 52 263 407 558 423 Remotely . | . . . . . . . Salvage Created 2734 | 131 121 68 460 751 849 354 Parts 164 | 10 8 6 23 49 44 24 Haulers Intercepted 3 | . . . 1 1 1 . Recyclers Shooed 4 | . 1 . . 1 2 . Parts Field Recycled . | . . . . . . . Retrieved Matter . | . . . . . . . Parts Self-Destructed . | . . . . . . . Prevented . | . . . . . . . Parts Restored . | . . . . . . . Kills | -11 -10 -10 -9 -8 -7 -6 ------- Run | Yrd Mat Min Mat Mat Fac Fac Combat Hostiles Destroyed 48 | . . 3 7 15 16 7 Guns 32 | . . 3 7 15 7 . Cannons 7 | . . . . . . 7 AOE 9 | . . . . . 9 . Classes Destroyed 14 | 2 1 1 3 4 2 1 Worker 13 | . 1 1 . 2 6 3 Builder 7 | . . . . 1 4 2 Tunneler 5 | 4 1 . . . . . Hauler 3 | . . . 1 1 1 . Recycler 7 | 1 1 . 1 2 2 . Mechanic 2 | . . . . 1 1 . Operator 1 | . . . . . . 1 Watcher 5 | . . . . 2 2 1 Swarmer 19 | . . 3 . 8 4 4 Grunt 13 | . . . 5 2 5 1 Sentry 7 | . . . 2 3 . 2 Specialist 1 | . . . . . 1 . Hunter 4 | . . . . 2 2 . Programmer 4 | . . . . . 4 . Best Kill Streak 9 | 3 1 4 2 5 9 5 Combat Bots Only 5 | . . 3 2 4 4 5 Max Kills in Single Turn 5 | 1 1 2 1 3 5 1 Gunslinging 1 | . . . . 1 . . Exploded 3 | . . . . . 3 . Melee . | . . . . . . . Uniques/NPCs Destroyed . | . . . . . . . Combat | -11 -10 -10 -9 -8 -7 -6 -------- Run | Yrd Mat Min Mat Mat Fac Fac Hostile Shots Fired 616 | . . 19 29 79 220 269 Missed 209 | . . 3 8 18 64 116 Hits 407 | . . 16 21 61 156 153 Projectile 407 | . . 16 21 61 156 153 AOE 1 | . . . . . 1 . Critical Strikes 9 | . . . . . 7 2 Part Disruptions 2 | . . . . . 1 1 Damage Taken 5783 | . . 124 256 709 2765 1929 Core 1588 | . . 65 31 107 526 859 Absorbed by Shields 284 | . . . . 28 256 . Core Remaining (%) 74 | 100 . 74 92 80 24 . Volleys Fired 210 | 14 13 7 17 43 80 36 Largest 4 | 2 2 2 4 4 3 1 Hottest 134 | 70 70 70 129 134 121 80 Shots Fired 443 | 28 25 14 56 139 144 37 Gun 381 | 28 25 14 56 139 118 1 Cannon 36 | . . . . . . 36 Launcher 26 | . . . . . 26 . Special . | . . . . . . . Kinetic 290 | 14 13 7 39 96 95 26 Thermal 127 | 14 12 7 17 43 23 11 Explosive 26 | . . . . . 26 . Electromagnetic . | . . . . . . . Robot Hit Streak 11 | 9 7 1 9 7 9 11 Robot Miss Streak 6 | 3 2 3 5 4 5 6 Penetration Max 1 | . . . . 1 1 . Secondary Targets 3 | . . . 1 2 . . Max Gunslinging Chain 1 | . . . 1 1 . . Shots Hit Robots 261 | 17 16 4 30 80 76 38 Core Hits 154 | 6 5 4 15 35 55 34 Critical Kills 3 | . . 1 . 1 1 . Critical Parts Destroyed 2 | . . . 1 1 . . Critical Strikes 13 | 2 2 1 1 6 1 . Burn 7 | 2 2 . . 3 . . Destroy 5 | . . 1 1 2 1 . Smash 1 | . . . . 1 . . Melee Attacks 10 | . . . . 3 3 4 Impact 6 | . . . . 3 3 . Slashing 4 | . . . . . . 4 Piercing . | . . . . . . . Sneak Attacks 4 | . . . . 2 1 1 Combat Hostiles . | . . . . . . . Follow-up Attacks . | . . . . . . . Damage Inflicted 6388 | 212 196 71 380 1464 3168 897 Guns 3449 | 212 196 71 380 1261 1329 . Cannons 769 | . . . . . . 769 Explosions 1748 | . . . . . 1748 . Melee 396 | . . . . 203 89 104 Ramming 26 | . . . . . 2 24 Kinetic 2859 | 74 85 20 263 843 1087 487 Thermal 2022 | 138 111 51 117 418 905 282 Explosive 1085 | . . . . . 1085 . Electromagnetic . | . . . . . . . Impact 292 | . . . . 203 89 . Slashing 104 | . . . . . . 104 Piercing . | . . . . . . . Highest Corruption 8 | . . . . . 8 1 Average Corruption 2 | . . . . . 6 1 Corruption Purged . | . . . . . . . Corruption Blocked . | . . . . . . . Effects 10 | . . . . . 6 4 Matter Fused 3 | . . . . . 2 1 Energy Discharges 4 | . . . . . 2 2 Parts Rejected 1 | . . . . . 1 . Data Loss (minor) 1 | . . . . . 1 . Misfires 1 | . . . . . . 1 Overload Shots . | . . . . . . . Overflow Damage 274 | . . . . 98 127 49 Projectiles 21 | . . . . . . 21 Explosions 78 | . . . . . 78 . Melee 175 | . . . . 98 49 28 Knockbacks 11 | . . . . . . 11 Impact . | . . . . . . . Kinetic 11 | . . . . . . 11 Secondary . | . . . . . . . Self-Inflicted Damage 218 | . . . . . 208 10 Shots 6 | . . . . . 6 . Rammed 7 | . . . . . 1 6 Targets Rammed 7 | . . . . . 1 6 Kicked . | . . . . . . . Crushed . | . . . . . . . Highest Temperature 336 | 36 36 45 200 286 336 108 Average Temperature 80 | 16 15 18 58 100 119 45 Received Heat Transfer 825 | . . . 120 70 350 285 Effects 6 | . . . 3 2 1 . Shutdowns 1 | . . . . . 1 . Energy Bleed 2 | . . . . 2 . . Interference 3 | . . . 3 . . . Siege Activations . | . . . . . . . Martial Activations . | . . . . . . . Shielding Activations . | . . . . . . . Robots Disrupted . | . . . . . . . Combat Hostiles . | . . . . . . . Robots Corrupted 2 | . . . . 2 . . Combat Hostiles . | . . . . . . . Parts Fried 2 | . . . . 1 1 . Impact Corruptions 5 | . . . . 4 1 . Robots Melted . | . . . . . . . Combat Hostiles . | . . . . . . . Parts Melted 6 | 2 1 1 . . . 2 Heat Transferred 4232 | 555 481 148 333 1147 1018 550 Parts Sabotaged . | . . . . . . . Parts Stolen . | . . . . . . . Parts Stripped . | . . . . . . . Power Chain Reactions . | . . . . . . . Alert | -11 -10 -10 -9 -8 -7 -6 ------- Run | Yrd Mat Min Mat Mat Fac Fac Maximum Alert Level 1 | . . . . 1 1 . Low Security (%) 91 | 100 100 100 100 93 72 100 Level 1 8 | . . . . 6 27 . Level 2 . | . . . . . . . Level 3 . | . . . . . . . Level 4 . | . . . . . . . Level 5 . | . . . . . . . High Security . | . . . . . . . Max Security . | . . . . . . . Peak Influence 327 | 10 5 60 55 208 327 152 Initial 152 | . . . 19 20 73 152 Average 65 | 2 . 10 13 99 107 65 Influence Increases 1796 | 25 15 75 208 458 776 239 Destroy 0b10 Robot/C 960 | . . 60 140 300 320 140 Destroy 0b10 Robot/NC 215 | 25 15 5 10 45 80 35 Destroy Leader 266 | . . 10 42 76 106 32 Successful Hack 5 | . . . . 5 . . Disable Machine 180 | . . . . 30 150 . Destroy Structure 110 | . . . 1 2 105 2 Lose Combat Pursuer 60 | . . . 15 . 15 30 Influence Decreases 1784 | 25 15 25 210 344 626 539 Entered New Map 308 | . . . 31 28 89 160 Time Decay 1164 | 25 15 25 169 286 357 287 Lost Part 312 | . . . 10 30 180 92 Squads Dispatched 15 | . . . 2 3 8 2 Investigation 4 | . . . 1 1 2 . Extermination 2 | . . . . . 1 1 Reinforcement 8 | . . . 1 2 5 . Assault . | . . . . . . . Garrison 1 | . . . . . . 1 Intercept . | . . . . . . . Searches Triggered . | . . . . . . . Construction Impeded 1 | . . . . . 1 . Haulers Reinforced . | . . . . . . . Active Scanning Responses . | . . . . . . . Cargo Convoy Interrupts . | . . . . . . . Stealth | -11 -10 -10 -9 -8 -7 -6 --------- Run | Yrd Mat Min Mat Mat Fac Fac Distress Signals 8 | . . . 1 3 2 2 Communications Jammed . | . . . . . . . Distress Signals . | . . . . . . . Times Spotted 85 | . 1 8 8 27 26 15 Peak Tracking Total 6 | . 1 6 3 4 5 6 Tactical Retreats 4 | . . . 1 . 1 2 Traps | -11 -10 -10 -9 -8 -7 -6 ------- Run | Yrd Mat Min Mat Mat Fac Fac Traps Triggered 10 | . . . 3 3 2 2 Indirectly . | . . . . . . . Trap Hack Attempts . | . . . . . . . Triggered . | . . . . . . . Disarmed . | . . . . . . . Reprogrammed . | . . . . . . . Reused . | . . . . . . . Traps Extracted . | . . . . . . . Installed . | . . . . . . . Triggered . | . . . . . . . Machines | -11 -10 -10 -9 -8 -7 -6 ---------- Run | Yrd Mat Min Mat Mat Fac Fac Machines Disabled 12 | . . . . 2 10 . Max in Single Turn 8 | . . . . 1 8 . Machines Repaired . | . . . . . . . Machines Dismantled . | . . . . . . . Machines Sabotaged . | . . . . . . . Overloaded Fab Kills . | . . . . . . . Hacking | -11 -10 -10 -9 -8 -7 -6 --------- Run | Yrd Mat Min Mat Mat Fac Fac Machines Accessed 3 | . . . 1 2 . . Terminals 2 | . . . 1 1 . . Fabricators . | . . . . . . . Repair Stations . | . . . . . . . Recycling Units . | . . . . . . . Scanalyzers 1 | . . . . 1 . . Garrison Access . | . . . . . . . Total Hacks 9 | . . . 3 6 . . Successful 4 | . . . . 4 . . Failed 4 | . . . 3 1 . . Catastrophic . | . . . . . . . Database Lockouts 1 | . . . . 1 . . Manual 5 | . . . 3 2 . . Terminals 6 | . . . 3 3 . . Fabricators . | . . . . . . . Repair Stations . | . . . . . . . Recycling Units . | . . . . . . . Scanalyzers 3 | . . . . 3 . . Garrison Access . | . . . . . . . Terminal Hacks 1 | . . . . 1 . . Prototype ID Bank 1 | . . . . 1 . . Fabricator Hacks . | . . . . . . . Repair Station Hacks . | . . . . . . . Recycling Unit Hacks . | . . . . . . . Scanalyzer 2 | . . . . 2 . . Retrieve Study 2 | . . . . 2 . . Garrison Access Hacks . | . . . . . . . Unauthorized Hacks 1 | . . . . 1 . . Terminals 1 | . . . . 1 . . Botnet 1 | . . . . 1 . . Fabricators . | . . . . . . . Repair Stations . | . . . . . . . Recycling Units . | . . . . . . . Scanalyzers . | . . . . . . . Garrison Access . | . . . . . . . Data Cores Recovered 1 | . . . . . . 1 Used . | . . . . . . . Hacking Detections 2 | . . . 1 1 . . Full Trace Events . | . . . . . . . Feedback Events . | . . . . . . . Feedback Blocked . | . . . . . . . Robot Schematics Acquired . | . . . . . . . Robots Built . | . . . . . . . Authchips . | . . . . . . . Time . | . . . . . . . Total Robot Build Rating . | . . . . . . . Part Schematics Acquired . | . . . . . . . Parts Built . | . . . . . . . Authchips . | . . . . . . . Time . | . . . . . . . Total Part Build Rating . | . . . . . . . Part Studies Acquired 2 | . . . . 2 . . Parts Repaired . | . . . . . . . Time . | . . . . . . . Parts Recycled . | . . . . . . . Recycled Matter . | . . . . . . . Retrieved Matter . | . . . . . . . Retrieved Components . | . . . . . . . Parts Scanalyzed . | . . . . . . . Part Schematics Acquired . | . . . . . . . Parts Damaged . | . . . . . . . Bothacking | -11 -10 -10 -9 -8 -7 -6 ------------ Run | Yrd Mat Min Mat Mat Fac Fac Used RIF Installer . | . . . . . . . Robots Hacked . | . . . . . . . Non-combat . | . . . . . . . Combat . | . . . . . . . Robot Hacks Applied . | . . . . . . . Relay Couplers Released 4 | . . . . . 4 . Programmers 4 | . . . . . 4 . Fabnet Peak Effective % . | . . . . . . . Robots Rewired . | . . . . . . . Allies Hacked . | . . . . . . . Hacks Repelled . | . . . . . . . Allies | -11 -10 -10 -9 -8 -7 -6 -------- Run | Yrd Mat Min Mat Mat Fac Fac Total Allies . | . . . . . . . Largest Group . | . . . . . . . Highest-Rated Group . | . . . . . . . Highest-Rated Ally . | . . . . . . . Total Orders . | . . . . . . . Ally Attacks . | . . . . . . . Total Damage . | . . . . . . . Kills . | . . . . . . . Allies Corrupted . | . . . . . . . Allies Melted . | . . . . . . . Intel | -11 -10 -10 -9 -8 -7 -6 ------- Run | Yrd Mat Min Mat Mat Fac Fac Active Infowar (turns) 3085 | 75 259 196 623 873 875 184 Terrain 312 | . . . . . 128 184 Seismic 2773 | 75 259 196 623 873 747 . Robot Analysis Total . | . . . . . . . Derelict Logs Recovered . | . . . . . . . Drone Launches . | . . . . . . . Drone Recoveries . | . . . . . . . Exploration | -11 -10 -10 -9 -8 -7 -6 ------------- Run | Yrd Mat Min Mat Mat Fac Fac Turns Passed 3821 | 113 259 196 697 888 939 729 Spaces Moved 1870 | 62 156 88 190 324 496 554 Core 364 | 3 . . . . . 361 Treads 124 | . . . 81 4 . 39 Legs . | . . . . . . . Wheels 1382 | 59 156 88 109 320 496 154 Hover . | . . . . . . . Flight . | . . . . . . . Fastest Speed 50 | 50 95 200 200 200 95 50 Average Speed 161 | 89 140 200 326 217 134 104 Slowest Speed 560 | 95 200 200 480 560 215 170 Overloaded Moves . | . . . . . . . Propulsion Burnouts . | . . . . . . . Robots Hopped . | . . . . . . . Potential Cave-ins . | . . . . . . . Cave-ins Triggered . | . . . . . . . Exploration Rate (%) 23 | 3 33 32 24 39 18 14 Regions Visited 6 Branch Regions 1 Pre-discovered Areas . | . . . . . . . Known Exits Taken . | . . . . . . . Unknown Exits Taken 6 | 1 1 1 1 1 1 . Scrap Searched 1 | . . 1 . . . . Spaces Dug 4 | . . . . . 2 2 Terrain Destroyed 119 | . . . . 2 115 2 Melee 4 | . . . . . 2 2 Projectile 6 | . . . . 2 4 . AOE 109 | . . . . . 109 . Terrain Rammed . | . . . . . . . Walls Destroyed . | . . . . . . . Machines Disabled . | . . . . . . . Actions | -11 -10 -10 -9 -8 -7 -6 --------- Run | Yrd Mat Min Mat Mat Fac Fac Total 2277 | 88 172 95 225 403 633 661 Wait 54 | . . . . 3 14 37 Move 1864 | 61 155 87 189 323 495 554 Hop . | . . . . . . . Pick Up 34 | 6 2 1 4 15 6 . Fast Attach 32 | 6 . . 8 3 6 9 Attach 31 | 1 . . . 4 19 7 Detach 7 | . . . . 1 2 4 Swap 9 | . 1 . 3 2 3 . Drop 19 | . 1 . 4 6 4 4 Fire 210 | 14 13 7 17 43 80 36 Melee 10 | . . . . 3 3 4 Ram 7 | . . . . . 1 6 Kick . | . . . . . . . Crush . | . . . . . . . Escape Stasis . | . . . . . . . Rewire . | . . . . . . . Trap . | . . . . . . . Miscellaneous . | . . . . . . . Route ------- -11/Scrapyard -10/Materials -10/Mines -9/Materials -8/Materials -7/Factory (discovered 2 exits: [*Fac x2]) -6/Factory (discovered 1 exit: [*Fac]) History --------- Turn | Location | Event 18 | -11/Scrapyard | Discovered new exit (range 16) 114 | -11/Scrapyard | Entered Materials 302 | -10/Materials | Build established: Mutant 345 | -10/Materials | Discovered new exit (range 14) 373 | -10/Materials | Entered Mines 374 | -10/Mines | Assembled infested the area 379 | -10/Mines | Assisted by a Guerilla fighting off Assembled 380 | -10/Mines | Received a Rocket Launcher from a helpful Derelict 557 | -10/Mines | Discovered new exit (range 5) 569 | -10/Mines | Entered Materials 569 | -9/Materials | Evolved 2 slots: Weapon x2 952 | -9/Materials | Build established: Gunner 1202 | -9/Materials | Discovered new exit (range 13) 1266 | -9/Materials | Entered another Materials area 1266 | -8/Materials | Evolved 2 slots: Utility x2 1572 | -8/Materials | Build established: Scavenger-Tank 1999 | -8/Materials | Central database locked down 2143 | -8/Materials | Discovered new exit (range 4) 2154 | -8/Materials | Entered Factory 2154 | -7/Factory | Evolved 2 slots: Propulsion x2 2449 | -7/Factory | Lost 3 parts (1p2w) 2698 | -7/Factory | Build established: Tank 2778 | -7/Factory | Discovered new exit (range 14) 2881 | -7/Factory | Lost 8 parts (1p1n3u3w) 2953 | -7/Factory | Lost 8 parts (1p3n1u3w) 2968 | -7/Factory | Core integrity fell below 50% 2981 | -7/Factory | Discovered new exit (range 16) 3089 | -7/Factory | Build established: Mutant 3093 | -7/Factory | Entered another Factory area 3093 | -6/Factory | Evolved 2 slots: Utility x2 3295 | -6/Factory | Lost 8 parts (1p4n1u2w) 3327 | -6/Factory | Core integrity fell below 50% 3593 | -6/Factory | Garrison activated, responded to threat 3655 | -6/Factory | Core integrity fell below 20% 3820 | -6/Factory | Discovered new exit (range 7) 3822 | -6/Factory | Destroyed by S-27 Virus with Autogun Last Messages --------------- 03688_ Destroyed Flak Gun. 03688_ Destroyed Gatling Laser. 03688_ Imp. Heat Sink melted. 03688_ Y-54 Guardian destroyed. 03690_ Acquired 65 matter. 03706_ Dropped Plasma Cannon. 03711_ Acquired Scythe. 03733_ Acquired Adv. Signal Interpreter. 03760_ Acquired Missile Launcher. 03772_ U-05 Engineer builds a Wall. 03775_ System corrupted: Energy discharge (-13). 03781_ Imp. Terrain Scanner destroyed. 03815_ Sneak attack on K-01 Serf. 03815_ Destroyed Lgt. Ion Engine. 03815_ K-01 Serf destroyed. 03817_ Acquired 20 matter. 03818_ Extracted 100 matter. 03820_ W-25 Informer sends out distress signal. 03820_ EXIT=FOUND 03821_ W-25 Informer destroyed. Map ----- +----------------------------------------------------+ | ?????????????????????????????????????????????????? | | ?????????????????????????????????????????????????? | | ?????????????????????????????????????????????????? | | ?????????????????????????????????????????????????? | | ?????????????????????????????????????????????????? | | ?????????????????????????????????????????????????? | | ?????????????????????????????????????????????????? | | ?????????????????????????????????????????????????? | | ?????????????????????????????????????????????????? | | ?????????????????????????????????????????????????? | | ?????????????????????????????????????????????????? | | ?????????????????????????????????????????????????? | | ?????????????????????????????????????????????????? | | ?????????????????????????????????????????????????? | | ?????????????????????????????????????????????????? | | ?????????????????????????????????????????????????? | | ?????????????????????######??????????????????????? | | ??????????????????#### ??????????????????????? | | ??????????????????? ??????????????????????? | | ???????????????????? < ??????????????????????? | | ????????????????????? ??????????????????????? | | ?????????????????????? ??????????????????????? | | ??????????????????????#k #??????????????????????? | | ??????????????????????# #??????????????????????? | | ??????????????????????# %#??????????????????????? | | ??????????????????????# @################???????? | | ??????????????????????# != = #???###+# | | ??????????????????????##s###############/##### | | ??????????????????????? ?????????????# # | | ?????????????????????? ?????????????# # "" | | ????????????????????? ?????????????# # "" | | ????????????????????? ??????????????# # "" | | ???????????????????? ??????????????# # "" | | ???????????????????# ??????????????# # | | ???????????????????# ??????????????# # | | ???????????????????# ???????????????# + | | ???????????????????####???????????????# # | | ??????????????????????????????????????# # | | ??????????????????????????????????????# ###+# | | ??????????????????????????????????????# # | | ?????????????????????????????????????## # """ | | ??????????????????????????????????????######## "T" | | ????????????????????????????????????????###### | | ?????????????????????????????????????#?####??# [[[ | | ???????????????????????????????????????###?### [[[ | | ?????????????????????????????????????#?#####?# [[[ | | ??????????????????????????????????????#??#???# | | ????????????????????????????????????????##???# ! | | ???????????????????????????????????????????### ! | | ????????????????????????????????????????##???# ! | +----------------------------------------------------+ Best States ------------- Heat Dissipation 37 Energy Generation 14 Energy Capacity 280 Matter Stores 300 Matter Capacity 300 Sight Range 16 Terrain Scan Range 16 Terrain Scan Density 310 Armor Coverage 225 Evasion (%) 50 Recoil Reduction 2 Kinecelleration 30 Item Schematics ----------------- None Robot Schematics ------------------ None Fabricated ------------ Nothing Repaired ---------- Nothing Studied --------- Arm. Wheel | -8/Materials | Hacked Great Maul | -8/Materials | Hacked Alien Tech Used ----------------- None Achievements -------------- None Challenges ------------ None Game ------ Seed MetafiberAngularComputer Manual? 0 Play Time 00:31:06 Cumulative 170.7 hours Start 2026.08.24 @ 04:04:23 End 2026.08.24 @ 04:30:02 Sessions 1 Manual Loads 0 Difficulty Rogue Special Mode None Game No. 339 Rogue 339 Adventurer 0 Explorer 0 Win Type - Total 2 Types 2/0/0/0/0/0/0/0/0/0 Lore% 58 Gallery% 58 Achievement% 46 Wizard Run 0 Options --------- Layout 2 ASCII 0 Keyboard 1 Movement Arrows Keybinds 0 Fullscreen 1 Font 24/Smallcaps Map View 50x44 Zoom Use 0% Tactical HUD 1 Map Filters NONE Filters NONE Steam 1 RUN: 0211403f-3e73-4fc1-a3a5-b79225e33993